[Event "15. Dobrovický rapid - Tereos TTD a.s. – open"]
[Site "Dobrovice, Czech Republic"]
[Date "2020.02.29"]
[Round "8.14"]
[White "Zemlicka Vit"]
[Black "Vavrinec Tomas"]
[Result "0-1"]
[TimeControl "15m + 3s / tah"]
[WhiteElo "1915"]
[BlackElo "2025"]

1. e4 {[%clk 00:15:05]} {[%emt 00:00:01]} e6 {[%clk 00:15:05]} {[%emt
00:00:02]} 2. d4 {[%clk 00:15:07]} {[%emt 00:00:01]} d5 {[%clk 00:15:07]} 3.
Nc3 {[%clk 00:15:09]} {[%emt 00:00:02]} Bb4 {[%clk 00:15:07]} {[%emt 00:00:02]}
4. exd5 {[%clk 00:15:04]} {[%emt 00:00:08]} exd5 {[%clk 00:15:06]} {[%emt
00:00:03]} 5. Bd3 {[%clk 00:15:06]} {[%emt 00:00:01]} Nf6 {[%clk 00:14:59]}
{[%emt 00:00:11]} 6. Nge2 {[%clk 00:15:07]} {[%emt 00:00:02]} O-O {[%clk
00:14:55]} {[%emt 00:00:06]} 7. O-O {[%clk 00:15:08]} {[%emt 00:00:02]} Bg4
{[%clk 00:14:44]} {[%emt 00:00:14]} 8. Bf4 {[%clk 00:14:23]} {[%emt 00:00:47]}
c6 {[%clk 00:14:29]} {[%emt 00:00:20]} 9. a3 {[%clk 00:14:15]} {[%emt
00:00:12]} Be7 {[%clk 00:14:25]} {[%emt 00:00:06]} 10. Qd2 {[%clk 00:13:54]}
{[%emt 00:00:24]} Nbd7 {[%clk 00:14:22]} {[%emt 00:00:06]} 11. h3 {[%clk
00:13:16]} {[%emt 00:00:41]} Bh5 {[%clk 00:14:23]} {[%emt 00:00:02]} 12. Ng3
{[%clk 00:13:09]} {[%emt 00:00:10]} Bg6 {[%clk 00:14:24]} {[%emt 00:00:02]} 13.
Nf5 {[%clk 00:12:42]} {[%emt 00:00:30]} Re8 {[%clk 00:14:22]} {[%emt 00:00:06]}
14. Nxe7+ {[%clk 00:12:14]} {[%emt 00:00:31]} Rxe7 {[%clk 00:14:09]} {[%emt
00:00:16]} 15. Bxg6 {[%clk 00:11:54]} {[%emt 00:00:23]} hxg6 {[%clk 00:14:08]}
{[%emt 00:00:03]} 16. Rfe1 {[%clk 00:11:32]} {[%emt 00:00:24]} Rxe1+ {[%clk
00:13:11]} {[%emt 00:01:02]} 17. Rxe1 {[%clk 00:11:34]} {[%emt 00:00:02]} Qb6
{[%clk 00:13:06]} {[%emt 00:00:06]} 18. b3 {[%clk 00:10:30]} {[%emt 00:01:07]}
Re8 {[%clk 00:11:59]} {[%emt 00:01:10]} 19. Rxe8+ {[%clk 00:10:10]} {[%emt
00:00:23]} Nxe8 {[%clk 00:12:01]} {[%emt 00:00:01]} 20. Qe3 {[%clk 00:09:12]}
{[%emt 00:01:00]} Qd8 {[%clk 00:10:56]} {[%emt 00:01:08]} 21. Ne2 {[%clk
00:08:47]} {[%emt 00:00:28]} Nef6 {[%clk 00:10:34]} {[%emt 00:00:26]} 22. f3
{[%clk 00:08:38]} {[%emt 00:00:11]} Nf8 {[%clk 00:08:48]} {[%emt 00:01:49]} 23.
Bh2 {[%clk 00:07:46]} {[%emt 00:00:56]} Ne6 {[%clk 00:08:38]} {[%emt 00:00:13]}
24. Nf4 {[%clk 00:07:37]} {[%emt 00:00:11]} Nf8 {[%clk 00:08:14]} {[%emt
00:00:28]} 25. Nd3 {[%clk 00:07:27]} {[%emt 00:00:13]} Qe8 {[%clk 00:07:39]}
{[%emt 00:00:37]} 26. Kf2 {[%clk 00:06:50]} {[%emt 00:00:41]} Qd8 {[%clk
00:05:44]} {[%emt 00:01:58]} 27. Qe5 {[%clk 00:05:57]} {[%emt 00:00:56]} Qa5
{[%clk 00:04:53]} {[%emt 00:00:54]} 28. a4 {[%clk 00:04:24]} {[%emt 00:01:37]}
Qd2+ {[%clk 00:04:49]} {[%emt 00:00:06]} 29. Qe2 {[%clk 00:04:19]} {[%emt
00:00:07]} Qc3 {[%clk 00:04:46]} {[%emt 00:00:08]} 30. Be5 {[%clk 00:03:33]}
{[%emt 00:00:49]} Ne6 {[%clk 00:04:47]} {[%emt 00:00:02]} 31. Ke3 {[%clk
00:03:08]} {[%emt 00:00:27]} Nd7 {[%clk 00:04:17]} {[%emt 00:00:33]} 32. Qd2
{[%clk 00:02:55]} {[%emt 00:00:15]} Qxd2+ {[%clk 00:03:25]} {[%emt 00:00:56]}
33. Kxd2 {[%clk 00:02:57]} {[%emt 00:00:02]} f6 {[%clk 00:03:27]} 34. Bf4
{[%clk 00:02:41]} {[%emt 00:00:18]} Nxd4 {[%clk 00:03:28]} {[%emt 00:00:03]} 35.
Be3 {[%clk 00:02:42]} {[%emt 00:00:02]} Ne6 {[%clk 00:02:29]} {[%emt 00:01:02]}
36. Bxa7 {[%clk 00:02:21]} {[%emt 00:00:23]} Kf7 {[%clk 00:02:30]} {[%emt
00:00:03]} 37. Bf2 {[%clk 00:02:04]} {[%emt 00:00:19]} Ke7 {[%clk 00:02:08]}
{[%emt 00:00:25]} 38. c3 {[%clk 00:01:24]} {[%emt 00:00:43]} Ng5 {[%clk
00:01:45]} {[%emt 00:00:26]} 39. Nc5 {[%clk 00:01:10]} {[%emt 00:00:17]} Nxc5
{[%clk 00:01:41]} {[%emt 00:00:07]} 40. Bxc5+ {[%clk 00:01:11]} {[%emt
00:00:02]} Kd7 {[%clk 00:01:36]} {[%emt 00:00:08]} 41. a5 {[%clk 00:00:57]}
{[%emt 00:00:17]} Ne6 {[%clk 00:01:37]} {[%emt 00:00:02]} 42. Bb6 {[%clk
00:00:49]} {[%emt 00:00:10]} c5 {[%clk 00:01:32]} {[%emt 00:00:09]} 43. b4
{[%clk 00:00:45]} {[%emt 00:00:08]} cxb4 {[%clk 00:01:11]} {[%emt 00:00:23]} 44.
cxb4 {[%clk 00:00:46]} {[%emt 00:00:02]} Kc6 {[%clk 00:01:13]} 45. Kc3 {[%clk
00:00:36]} {[%emt 00:00:14]} Kb5 {[%clk 00:00:57]} {[%emt 00:00:20]} 46. Bf2
{[%clk 00:00:22]} {[%emt 00:00:18]} d4+ {[%clk 00:00:28]} {[%emt 00:00:32]} 47.
Kd3 {[%clk 00:00:07]} {[%emt 00:00:18]} Kxb4 {[%clk 00:00:26]} {[%emt
00:00:13]} 48. Be1+ {[%emt 00:00:12]} Kc5 {[%clk 00:00:23]} {[%emt 00:00:02]}
0-1
[ePGN "0.1;DGT LiveChess/2.2.5"]

[Event "15. Dobrovický rapid - Tereos TTD a.s. – open"]
[Site "Dobrovice, Czech Republic"]
[Date "2020.02.29"]
[Round "9.1"]
[White "Plat Vojtech"]
[Black "Velicka Petr"]
[Result "1/2-1/2"]
[TimeControl "15m + 3s / tah"]
[WhiteElo "2553"]
[BlackElo "2395"]

1. d4 {[%clk 00:15:04]} {[%emt 00:00:01]} d5 {[%clk 00:15:04]} {[%emt
00:00:02]} 2. Nf3 {[%clk 00:15:06]} {[%emt 00:00:01]} Nf6 {[%clk 00:15:06]}
{[%emt 00:00:01]} 3. e3 {[%clk 00:15:07]} {[%emt 00:00:01]} Bg4 {[%clk
00:14:54]} {[%emt 00:00:15]} 4. c4 {[%clk 00:15:09]} {[%emt 00:00:02]} c6
{[%clk 00:14:56]} {[%emt 00:00:01]} 5. Nbd2 {[%clk 00:14:57]} {[%emt 00:00:14]}
e6 {[%clk 00:14:50]} {[%emt 00:00:09]} 6. Qb3 {[%clk 00:14:52]} {[%emt
00:00:08]} Qb6 {[%clk 00:14:45]} {[%emt 00:00:08]} 7. Ne5 {[%clk 00:14:42]}
{[%emt 00:00:13]} Bh5 {[%clk 00:14:41]} {[%emt 00:00:07]} 8. Bd3 {[%clk
00:13:42]} {[%emt 00:01:03]} Nbd7 {[%clk 00:14:42]} {[%emt 00:00:03]} 9. Nxd7
{[%clk 00:13:40]} {[%emt 00:00:06]} Nxd7 {[%clk 00:14:42]} {[%emt 00:00:03]} 10.
Qc2 {[%clk 00:13:39]} {[%emt 00:00:03]} Bg6 {[%clk 00:14:41]} {[%emt 00:00:04]}
11. O-O {[%clk 00:13:31]} {[%emt 00:00:12]} Nf6 {[%clk 00:14:40]} {[%emt
00:00:04]} 12. h3 {[%clk 00:13:12]} {[%emt 00:00:22]} 1/2-1/2

[Event "15. Dobrovický rapid - Tereos TTD a.s. – open"]
[Site "Dobrovice, Czech Republic"]
[Date "2020.02.29"]
[Round "9.3"]
[White "Kourousis Epaminondas"]
[Black "Postupa Pavel ml."]
[Result "1/2-1/2"]
[TimeControl "15m + 3s / tah"]
[WhiteElo "2406"]
[BlackElo "2164"]

1. Nf3 {[%clk 00:15:01]} {[%emt 00:00:04]} g6 {[%clk 00:15:01]} {[%emt
00:00:06]} 2. c4 {[%clk 00:14:48]} {[%emt 00:00:15]} c5 {[%clk 00:15:02]}
{[%emt 00:00:02]} 3. Nc3 {[%clk 00:14:42]} {[%emt 00:00:09]} Bg7 {[%clk
00:15:02]} {[%emt 00:00:03]} 4. e3 {[%clk 00:14:42]} {[%emt 00:00:03]} Nc6
{[%clk 00:15:00]} {[%emt 00:00:06]} 5. d4 {[%clk 00:14:40]} {[%emt 00:00:05]}
cxd4 {[%clk 00:14:45]} {[%emt 00:00:18]} 6. exd4 {[%clk 00:14:42]} {[%emt
00:00:01]} d6 {[%clk 00:14:43]} {[%emt 00:00:05]} 7. h3 {[%clk 00:14:42]}
{[%emt 00:00:04]} Nf6 {[%clk 00:14:44]} {[%emt 00:00:02]} 8. Be2 {[%clk
00:14:28]} {[%emt 00:00:16]} O-O {[%clk 00:14:44]} {[%emt 00:00:02]} 9. O-O
{[%clk 00:14:12]} {[%emt 00:00:19]} d5 {[%clk 00:14:43]} {[%emt 00:00:05]} 10.
Re1 {[%clk 00:13:31]} {[%emt 00:00:44]} Bf5 {[%clk 00:14:33]} {[%emt 00:00:12]}
11. Bf4 {[%clk 00:12:24]} {[%emt 00:01:11]} Rc8 {[%clk 00:14:23]} {[%emt
00:00:13]} 12. a3 {[%clk 00:11:37]} {[%emt 00:00:50]} 1/2-1/2

[Event "15. Dobrovický rapid - Tereos TTD a.s. – open"]
[Site "Dobrovice, Czech Republic"]
[Date "2020.02.29"]
[Round "9.4"]
[White "Suran Jan"]
[Black "Sulc Jakub"]
[Result "1/2-1/2"]
[TimeControl "15m + 3s / tah"]
[WhiteElo "2335"]
[BlackElo "1754"]

1. e4 {[%clk 00:15:05]} e6 {[%clk 00:15:06]} {[%emt 00:00:01]} 2. d4 {[%clk
00:15:06]} {[%emt 00:00:02]} d5 {[%clk 00:15:08]} {[%emt 00:00:01]} 3. Nd2
{[%clk 00:15:08]} Nf6 {[%clk 00:15:10]} {[%emt 00:00:02]} 4. Bd3 {[%clk
00:15:09]} {[%emt 00:00:02]} c5 {[%clk 00:15:07]} {[%emt 00:00:06]} 5. e5
{[%emt 00:00:01]} Nfd7 6. c3 {[%clk 00:15:11]} Nc6 {[%clk 00:15:08]} 7. Ne2
{[%clk 00:15:13]} {[%emt 00:00:08]} cxd4 {[%clk 00:15:11]} 8. cxd4 {[%clk
00:15:13]} f6 {[%clk 00:15:11]} 9. exf6 {[%clk 00:15:16]} {[%emt 00:00:06]}
Nxf6 {[%clk 00:15:14]} 10. Nf3 {[%clk 00:15:17]} {[%emt 00:00:03]} Bd6 {[%clk
00:15:16]} 11. Bf4 {[%clk 00:15:13]} {[%emt 00:00:09]} O-O {[%clk 00:15:11]} 12.
O-O {[%clk 00:15:10]} {[%emt 00:00:13]} Bxf4 {[%emt 00:01:04]} 13. Nxf4 {[%clk
00:15:10]} Ne4 {[%clk 00:14:15]} 14. Qc1 {[%clk 00:14:54]} {[%emt 00:00:19]}
Ng5 {[%clk 00:13:23]} {[%emt 00:00:55]} 15. Nxg5 {[%clk 00:14:54]} {[%emt
00:00:03]} Qxg5 {[%clk 00:13:25]} {[%emt 00:00:01]} 16. Ne2 {[%clk 00:14:56]}
{[%emt 00:00:01]} Qxc1 {[%clk 00:12:49]} {[%emt 00:00:39]} 17. Raxc1 {[%clk
00:14:58]} {[%emt 00:00:01]} e5 {[%clk 00:12:51]} 18. dxe5 {[%clk 00:14:33]}
{[%emt 00:00:28]} Nxe5 {[%clk 00:12:52]} {[%emt 00:00:01]} 19. Rfd1 {[%clk
00:14:30]} {[%emt 00:00:06]} Bd7 {[%clk 00:12:42]} {[%emt 00:00:14]} 20. Nd4
{[%clk 00:14:26]} {[%emt 00:00:07]} Rac8 {[%clk 00:12:28]} {[%emt 00:00:17]} 21.
Be2 {[%clk 00:13:23]} {[%emt 00:01:06]} a6 {[%clk 00:10:40]} {[%emt 00:01:51]}
22. f3 {[%clk 00:13:09]} {[%emt 00:00:17]} Kf7 {[%clk 00:09:58]} {[%emt
00:00:44]} 23. f4 {[%clk 00:11:10]} {[%emt 00:02:03]} Rxc1 {[%clk 00:08:52]}
{[%emt 00:01:09]} 24. Rxc1 {[%clk 00:11:12]} {[%emt 00:00:01]} Nc6 {[%clk
00:08:53]} {[%emt 00:00:02]} 25. Nb3 {[%clk 00:08:47]} {[%emt 00:02:28]} Ke7
{[%clk 00:07:17]} {[%emt 00:01:40]} 26. g3 {[%clk 00:08:48]} {[%emt 00:00:02]}
Kd6 {[%clk 00:07:16]} {[%emt 00:00:04]} 27. Kg2 {[%clk 00:07:14]} {[%emt
00:01:37]} Rf7 {[%clk 00:06:07]} {[%emt 00:01:12]} 28. Bd3 {[%clk 00:06:37]}
{[%emt 00:00:40]} Bf5 {[%clk 00:05:30]} {[%emt 00:00:40]} 29. Bxf5 {[%clk
00:06:23]} {[%emt 00:00:17]} Rxf5 {[%clk 00:05:32]} 30. Kf3 {[%clk 00:06:20]}
{[%emt 00:00:05]} h5 {[%clk 00:04:56]} {[%emt 00:00:39]} 31. Ke3 {[%clk
00:05:53]} {[%emt 00:00:30]} Rf7 {[%clk 00:04:36]} {[%emt 00:00:22]} 32. a3
{[%clk 00:05:50]} {[%emt 00:00:07]} Re7+ {[%clk 00:04:02]} {[%emt 00:00:37]} 33.
Kd3 {[%clk 00:05:52]} Re4 {[%clk 00:02:01]} {[%emt 00:02:05]} 34. Nd2 {[%clk
00:05:03]} {[%emt 00:00:52]} Re8 {[%clk 00:01:59]} {[%emt 00:00:05]} 35. Nf3
{[%clk 00:04:52]} {[%emt 00:00:14]} Re4 {[%clk 00:01:17]} {[%emt 00:00:45]} 36.
b3 {[%clk 00:03:55]} {[%emt 00:00:59]} Na5 {[%clk 00:01:01]} {[%emt 00:00:19]}
37. Rc3 {[%clk 00:03:56]} {[%emt 00:00:02]} Nc6 {[%clk 00:00:39]} {[%emt
00:00:24]} 38. Rc2 {[%clk 00:03:18]} {[%emt 00:00:41]} Re7 {[%clk 00:00:17]}
{[%emt 00:00:26]} 39. Nh4 {[%clk 00:02:58]} {[%emt 00:00:23]} Rf7 {[%clk
00:00:11]} {[%emt 00:00:09]} 40. Re2 {[%clk 00:02:51]} {[%emt 00:00:10]} Rf8
{[%clk 00:00:09]} {[%emt 00:00:06]} 41. b4 {[%clk 00:02:44]} {[%emt 00:00:09]}
b6 {[%clk 00:00:07]} {[%emt 00:00:05]} 42. Ng6 {[%clk 00:02:33]} {[%emt
00:00:14]} Rf6 {[%clk 00:00:06]} {[%emt 00:00:04]} 43. Ne5 {[%clk 00:02:04]}
{[%emt 00:00:32]} Ne7 {[%clk 00:00:04]} {[%emt 00:00:05]} 44. Rc2 {[%emt
00:00:12]} Rf8 45. Rc1 {[%clk 00:01:48]} {[%emt 00:00:10]} Rf6 {[%clk
00:00:08]} {[%emt 00:00:01]} 46. Ke3 {[%clk 00:01:30]} {[%emt 00:00:21]} Rf8
{[%clk 00:00:10]} {[%emt 00:00:01]} 47. Kf3 {[%clk 00:01:24]} {[%emt 00:00:09]}
Rf6 {[%clk 00:00:11]} {[%emt 00:00:02]} 48. h3 {[%clk 00:01:23]} {[%emt
00:00:04]} Rf8 {[%clk 00:00:13]} {[%emt 00:00:01]} 49. Ke3 {[%clk 00:01:05]}
{[%emt 00:00:21]} Rf6 {[%clk 00:00:12]} {[%emt 00:00:04]} 50. g4 {[%clk
00:01:01]} {[%emt 00:00:07]} Rf8 {[%clk 00:00:13]} {[%emt 00:00:03]} 51. Nf3
{[%clk 00:00:53]} {[%emt 00:00:10]} hxg4 {[%clk 00:00:14]} {[%emt 00:00:02]} 52.
hxg4 {[%clk 00:00:56]} Ng6 {[%clk 00:00:14]} {[%emt 00:00:02]} 53. f5 {[%clk
00:00:54]} {[%emt 00:00:05]} Ne5 {[%clk 00:00:15]} {[%emt 00:00:02]} 54. Nxe5
{[%clk 00:00:36]} {[%emt 00:00:21]} Kxe5 {[%clk 00:00:17]} 55. Rc6 {[%clk
00:00:34]} {[%emt 00:00:02]} Rf6 {[%clk 00:00:17]} {[%emt 00:00:06]} 56. Rc7
{[%clk 00:00:31]} {[%emt 00:00:06]} g6 {[%clk 00:00:19]} {[%emt 00:00:02]} 57.
fxg6 {[%clk 00:00:26]} {[%emt 00:00:08]} Rxg6 {[%clk 00:00:21]} {[%emt
00:00:01]} 58. Kf3 {[%clk 00:00:20]} {[%emt 00:00:09]} d4 {[%clk 00:00:23]}
{[%emt 00:00:01]} 59. Rd7 {[%clk 00:00:17]} {[%emt 00:00:06]} Rg5 {[%clk
00:00:19]} {[%emt 00:00:07]} 60. Rd8 {[%clk 00:00:14]} {[%emt 00:00:06]} Rg6
{[%clk 00:00:20]} {[%emt 00:00:02]} 61. Rd7 {[%clk 00:00:12]} {[%emt 00:00:04]}
b5 {[%clk 00:00:21]} {[%emt 00:00:02]} 62. Rd8 {[%clk 00:00:10]} {[%emt
00:00:05]} Rf6+ {[%clk 00:00:23]} {[%emt 00:00:01]} 63. Ke2 {[%clk 00:00:09]}
{[%emt 00:00:04]} Rg6 {[%clk 00:00:25]} {[%emt 00:00:01]} 64. Kf3 {[%clk
00:00:10]} {[%emt 00:00:02]} Rf6+ {[%clk 00:00:27]} 65. Ke2 {[%clk 00:00:10]}
{[%emt 00:00:04]} Rg6 {[%clk 00:00:28]} {[%emt 00:00:02]} 66. Kf3 {[%clk
00:00:09]} {[%emt 00:00:04]} Rf6+ {[%clk 00:00:29]} {[%emt 00:00:01]} 67. Ke2
{[%emt 00:00:08]} Rf4 68. Rg8 {[%emt 00:00:04]} Ke4 {[%emt 00:00:04]} 69. Re8+
{[%emt 00:00:04]} Kd5 {[%emt 00:00:01]} {Poskozeny zaznam} 1/2-1/2

[Event "15. Dobrovický rapid - Tereos TTD a.s. – open"]
[Site "Dobrovice, Czech Republic"]
[Date "2020.02.29"]
[Round "9.5"]
[White "Flasar Jaroslav"]
[Black "Hosticka Frantisek"]
[Result "0-1"]
[TimeControl "15m + 3s / tah"]
[WhiteElo "1969"]
[BlackElo "2106"]

1. e4 {[%clk 00:15:04]} {[%emt 00:00:01]} Nf6 {[%clk 00:15:05]} 2. e5 {[%clk
00:15:00]} {[%emt 00:00:07]} Nd5 {[%clk 00:15:08]} 3. c4 Nb6 4. d4 d6 5. exd6
{[%clk 00:15:06]} {[%emt 00:00:01]} exd6 {[%clk 00:15:15]} 6. Be2 {[%clk
00:15:04]} {[%emt 00:00:05]} Be7 {[%clk 00:15:15]} {[%emt 00:00:03]} 7. Nf3
{[%clk 00:15:06]} O-O {[%clk 00:15:09]} {[%emt 00:00:09]} 8. O-O {[%clk
00:15:06]} {[%emt 00:00:02]} Bg4 {[%clk 00:15:02]} {[%emt 00:00:10]} 9. b3
{[%clk 00:15:03]} {[%emt 00:00:07]} Bf6 {[%clk 00:14:57]} {[%emt 00:00:08]} 10.
Bb2 {[%clk 00:15:05]} {[%emt 00:00:01]} Nc6 {[%clk 00:14:49]} {[%emt 00:00:10]}
11. Nbd2 {[%clk 00:15:01]} {[%emt 00:00:07]} Re8 {[%clk 00:14:13]} {[%emt
00:00:40]} 12. Re1 {[%clk 00:15:03]} {[%emt 00:00:02]} a5 {[%clk 00:13:50]}
{[%emt 00:00:25]} 13. a3 {[%clk 00:14:59]} {[%emt 00:00:06]} a4 {[%clk
00:13:23]} {[%emt 00:00:31]} 14. b4 {[%clk 00:14:55]} {[%emt 00:00:07]} d5
{[%clk 00:13:18]} {[%emt 00:00:08]} 15. c5 {[%clk 00:14:50]} {[%emt 00:00:09]}
Nd7 {[%clk 00:12:55]} {[%emt 00:00:26]} 16. Qc2 {[%clk 00:14:22]} {[%emt
00:00:30]} Ne7 {[%clk 00:12:11]} {[%emt 00:00:47]} 17. Bb5 {[%clk 00:14:06]}
{[%emt 00:00:20]} c6 {[%clk 00:11:58]} {[%emt 00:00:16]} 18. Bxa4 {[%clk
00:13:58]} {[%emt 00:00:09]} Bf5 {[%clk 00:10:59]} {[%emt 00:01:03]} 19. Qd1
{[%clk 00:14:00]} {[%emt 00:00:03]} Ng6 {[%clk 00:10:47]} {[%emt 00:00:15]} 20.
Bc2 {[%clk 00:13:25]} {[%emt 00:00:37]} Rxe1+ {[%clk 00:10:07]} {[%emt
00:00:44]} 21. Nxe1 {[%clk 00:13:27]} {[%emt 00:00:01]} Bxc2 {[%clk 00:09:50]}
{[%emt 00:00:20]} 22. Qxc2 {[%clk 00:13:19]} {[%emt 00:00:11]} Ndf8 {[%clk
00:07:44]} {[%emt 00:02:10]} 23. Nd3 {[%clk 00:13:07]} {[%emt 00:00:14]} Ne6
{[%clk 00:07:32]} {[%emt 00:00:14]} 24. Nf3 {[%clk 00:13:02]} {[%emt 00:00:08]}
Nh4 {[%clk 00:07:16]} {[%emt 00:00:19]} 25. Nde5 {[%clk 00:12:30]} {[%emt
00:00:35]} Bxe5 {[%clk 00:06:54]} {[%emt 00:00:24]} 26. Nxe5 {[%clk 00:12:08]}
{[%emt 00:00:26]} Qg5 {[%clk 00:06:26]} {[%emt 00:00:32]} 27. g3 {[%clk
00:11:52]} {[%emt 00:00:19]} f6 {[%clk 00:05:48]} {[%emt 00:00:40]} 28. Bc1
{[%clk 00:08:42]} {[%emt 00:03:12]} Qh5 {[%clk 00:05:15]} {[%emt 00:00:35]} 29.
gxh4 {[%clk 00:07:48]} {[%emt 00:00:58]} Nxd4 {[%clk 00:04:43]} {[%emt
00:00:35]} 30. Qd3 {[%clk 00:06:44]} {[%emt 00:00:59]} fxe5 {[%clk 00:04:12]}
{[%emt 00:00:43]} 31. Kg2 {[%clk 00:06:26]} {[%emt 00:00:21]} Rf8 {[%clk
00:03:59]} {[%emt 00:00:15]} 32. Qg3 {[%clk 00:05:07]} {[%emt 00:01:22]} Nf5
{[%clk 00:03:43]} {[%emt 00:00:19]} 33. Qg5 {[%clk 00:04:41]} {[%emt 00:00:30]}
Nxh4+ {[%clk 00:03:40]} {[%emt 00:00:06]} 34. Kh3 {[%clk 00:04:21]} {[%emt
00:00:23]} Rf3+ {[%clk 00:03:30]} {[%emt 00:00:13]} 0-1